[Event "EICC 2025"]
[Site "Eforie-Nord"]
[Date "2025.03.15"]
[Round "1.20"]
[White "Hakobyan, Aram"]
[Black "Hulka, Valentyn"]
[Result "1-0"]
[Annotator "TA"]
[ECO "B31"]
[WhiteElo "2635"]
[BlackElo "2312"]
[PlyCount "77"]
[EventDate "2025.03.14"]
[EventType "swiss"]
[EventCountry "ROU"]
[SourceTitle "playchess.com"]
[Source "ChessBase"]
[SourceQuality "1"]
[TimeControl "40/5400+30:1800+30"]

{[%evp 15,77,-3,18,8,12,8,7,0,10,2,29,25,21,30,30,12,19,14,24,18,35,44,102,95,116,122,141,139,112,27,226,222,263,227,232,235,244,242,217,205,240,233,389,370,353,354,442,435,491,448,890,867,978,960,947,964,815,794,2553,2405,6257,6253,29984,29980]} 1. e4 {[%emt 0:00:56]} c5 {[%emt 0:00:26]} 2. Nf3 {[%emt 0:00:09]} Nc6 {[%emt 0:00:05]} 3. Bb5 {[%emt 0:00:08]} g6 {[%emt 0:00:08]} 4. O-O {[%emt 0:00:41]} Bg7 {[%emt 0:00:08]} 5. c3 {[%emt 0:00:44]} Nf6 {[%emt 0:00:07]} 6. Re1 {[%emt 0:00:19]} O-O {[%emt 0:00:35]} 7. d4 {[%emt 0:00:26]} d5 {[%emt 0:00:06]} 8. e5 {[%emt 0:00:07]} Ne4 {[%emt 0:00:04]} 9. Be3 {[%emt 0:00:11] B31: Sicilian: 2...Nc6 3 Bb5 g6.} cxd4 {[%emt 0:00:14] The main line 9...cxd4 scores better than 9...Qb6.} 10. cxd4 {[%emt 0:00:09]} Qb6 {[%emt 0:01:47]} 11. Bxc6 {[%emt 0:00:09] The position is equal.} Qxc6 {[%emt 0:00:55]} 12. Ng5 $5 {[%emt 0:00:09][%mdl 4] Leaves trodden paths.} h6 $146 {[%emt 0:17:10]} (12... Bf5 13. Nxe4 dxe4 14. Nc3 Rfd8 15. Qb3 Be6 16. Qb4 Rd7 17. a4 f5 18. Rec1 a5 {1-0 Navara,D (2676)-Bosiocic,M (2548) Bundesliga 2223 2022 (10.2)}) 13. Nxe4 {[%emt 0:00:14]} dxe4 {[%emt 0:00:01]} 14. Nc3 {[%emt 0:00:31]} Rd8 {[%emt 0:00:41]} 15. Qb3 {[%emt 0:02:42]} Be6 {[%emt 0:04:33]} 16. Qa3 {[%emt 0:02:42]} Bf8 {[%emt 0:05:49]} 17. Rac1 {[%emt 0:01:08]} f5 {[%emt 0:03:04]} 18. Red1 {[%emt 0:11:09][%cal Od4d5]} Kh7 {[%emt 0:14:23]} (18... Bc4 $14) 19. h4 $1 $16 {[%emt 0:03:42]} Bc4 {[%emt 0:08:40] [#]} 20. d5 {[%emt 0:27:15][%cal Bd4d5,Bd5d6][%mdl 544] White plays in the center} Qa6 {[%emt 0:03:28] Black is weak on the dark squares} (20... Bxd5 21. Nxd5) 21. Qb4 {[%emt 0:04:18]} Rac8 {[%emt 0:04:00][%cal Oc4d3]} 22. Bc5 {[%emt 0:05:24] White is more active.} (22. b3 $16 Bd3 23. a4) 22... Rd7 $2 {[%emt 0:10:37] [#] This move loses the game for Black.} (22... Re8 $1 $11 {and Black stays safe.}) 23. d6 $1 $18 {[%emt 0:11:41]} e6 {[%emt 0:04:56]} 24. Bd4 {[%emt 0:03:45]} (24. Nxe4 fxe4 25. Qxc4 (25. Rxc4 b6 $14) 25... Qxc4 26. Rxc4 b6 $16) 24... b6 {[%emt 0:02:49]} 25. a4 {[%emt 0:09:27]} g5 {[%emt 0:04:15]} 26. Nb5 {[%emt 0:03:58]} Bd5 {[%emt 0:03:05]} 27. h5 {[%emt 0:00:59]} Qb7 {[%emt 0:01:14]} 28. Qd2 {[%emt 0:01:19]} a6 $2 {[%emt 0:06:39] [#]} (28... Kg8 29. Rxc8 Qxc8) 29. Rxc8 $1 {[%emt 0:01:00]} Qxc8 {[%emt 0:00:02]} 30. Rc1 {[%emt 0:00:12]} Qb7 {[%emt 0:02:29]} 31. Nc7 {[%emt 0:00:30]} Bg7 {[%emt 0:01:04]} 32. Qe2 {[%emt 0:04:58]} Rf7 {[%emt 0:01:29]} (32... b5 $142 33. Rc5 (33. axb5 axb5 34. Rc5 Bc4 $18) 33... Bc4) 33. Nxd5 {[%emt 0:02:08]} (33. Qxa6 Rxc7 34. dxc7 Qxa6 $16) 33... Qxd5 {[%emt 0:00:06]} 34. Qc4 {[%emt 0:00:06]} ({Less strong is} 34. Bxb6 Bxe5 35. Rd1 (35. Qxa6 Qxd6 36. Qb5 Rd7 $14) 35... Qc6 36. Qxa6 Rd7 $11 (36... Qc2 37. Qf1 $16)) 34... Qxc4 {[%emt 0:01:45]} 35. Rxc4 {[%emt 0:00:01]} Kg8 {[%emt 0:00:12]} 36. Rc7 {[%emt 0:00:33]} Rf8 {[%emt 0:00:43] Dodges d7} 37. d7 {[%emt 0:00:45][%cal Oc7c8] Threatens to win with Rc8!.} e3 {[%emt 0:00:22]} 38. fxe3 {[%emt 0:00:16][%cal Oc7c8] White threatens Rc8! and mate.} f4 {[%emt 0:00:11]} 39. Rc8 {[%emt 0:00:11] Weighted Error Value: White=0.07 (flawless) /Black=0.95  Loses game:     	---       	Black=1      Mistake:       	White=1     	Black=3      Inaccurate:     	---       	Black=1      OK:         	White=10    	Black=5      Best:        	White=2     	---        Strong:       	White=3     	---} 1-0

[Event "EICC 2025"]
[Site "Eforie-Nord"]
[Date "2025.03.15"]
[Round "1.20"]
[White "Sgircea, Silvia-Raluca"]
[Black "Stefansson, Vignir Vatnar"]
[Result "0-1"]
[Annotator "ChessBase"]
[ECO "A30"]
[WhiteElo "2221"]
[BlackElo "2551"]
[PlyCount "94"]
[EventDate "2025.03.14"]
[EventType "swiss"]
[EventCountry "ROU"]
[SourceTitle "playchess.com"]
[Source "ChessBase"]
[SourceQuality "1"]
[TimeControl "40/5400+30:1800+30"]

1. c4 {[%emt 0:00:06]} Nf6 {[%emt 0:00:25]} 2. Nf3 {[%emt 0:00:22]} b6 {[%emt 0:00:09]} 3. g3 {[%emt 0:01:12]} Bb7 {[%emt 0:00:08]} 4. Bg2 {[%emt 0:00:06]} g6 {[%emt 0:00:06]} 5. O-O {[%emt 0:01:42]} Bg7 {[%emt 0:00:06]} 6. Nc3 {[%emt 0:00:55]} O-O {[%emt 0:00:10]} 7. Qc2 {[%emt 0:06:59]} c5 {[%emt 0:00:33]} 8. b3 {[%emt 0:05:50]} d5 {[%emt 0:01:29]} 9. cxd5 {[%emt 0:00:07]} Nxd5 {[%emt 0:00:08]} 10. Bb2 {[%emt 0:00:10]} e5 {[%emt 0:05:50]} 11. Nxd5 {[%emt 0:02:36]} Qxd5 {[%emt 0:00:17]} 12. d3 {[%emt 0:01:42]} Nc6 {[%emt 0:01:19]} 13. Rfd1 {[%emt 0:10:56]} Rfe8 {[%emt 0:01:28]} 14. Bc3 {[%emt 0:08:40]} Rac8 {[%emt 0:06:54]} 15. Rac1 {[%emt 0:08:52]} Qd7 {[%emt 0:02:13]} 16. Qb2 {[%emt 0:08:19]} Qe7 {[%emt 0:23:57]} 17. Re1 {[%emt 0:08:01]} h6 {[%emt 0:06:15]} 18. a4 {[%emt 0:05:23]} Nb4 {[%emt 0:04:24]} 19. Qa1 {[%emt 0:06:31]} Nd5 {[%emt 0:08:03]} 20. Bb2 {[%emt 0:00:09]} a6 {[%emt 0:00:07]} 21. Nd2 {[%emt 0:01:35]} Qc7 {[%emt 0:02:57]} 22. Red1 {[%emt 0:05:55]} Kh7 {[%emt 0:03:55]} 23. e3 {[%emt 0:02:45]} Nb4 {[%emt 0:05:30]} 24. Bxb7 {[%emt 0:00:25]} Qxb7 {[%emt 0:00:05]} 25. Nc4 {[%emt 0:00:15]} Qb8 {[%emt 0:00:06]} 26. d4 {[%emt 0:04:06]} exd4 {[%emt 0:09:11]} 27. exd4 {[%emt 0:00:06]} Re2 {[%emt 0:00:06]} 28. dxc5 {[%emt 0:06:12]} Bxb2 {[%emt 0:00:21]} 29. Nxb2 {[%emt 0:00:04]} Qe5 {[%emt 0:01:27]} 30. Nc4 {[%emt 0:00:50]} Qf5 {[%emt 0:01:17]} 31. Qd4 {[%emt 0:00:25]} bxc5 {[%emt 0:01:17]} 32. Qf4 {[%emt 0:00:08]} Qxf4 {[%emt 0:00:18]} 33. gxf4 {[%emt 0:00:05]} Rc6 {[%emt 0:10:38]} 34. Kf1 {[%emt 0:04:35]} Re4 {[%emt 0:00:27]} 35. Na5 {[%emt 0:00:56]} Rf6 {[%emt 0:01:37]} 36. Rxc5 {[%emt 0:00:40]} Rexf4 {[%emt 0:00:28]} 37. Rd2 {[%emt 0:00:09]} Rf3 {[%emt 0:00:45]} 38. Rc4 {[%emt 0:00:56]} Nd3 {[%emt 0:00:27]} 39. Rcc2 {[%emt 0:00:07]} Nf4 {[%emt 0:01:13]} 40. Rb2 {[%emt 0:00:55]} Rh3 {[%emt 0:01:22]} 41. Nc4 {[%emt 0:09:18]} Rxh2 {[%emt 0:02:26]} 42. f3 {[%emt 0:01:03]} Rh3 {[%emt 0:00:25]} 43. Kf2 {[%emt 0:00:59]} Ne6 {[%emt 0:02:24]} 44. Rd3 {[%emt 0:03:10]} g5 {[%emt 0:01:17]} 45. b4 {[%emt 0:03:09]} g4 {[%emt 0:00:55]} 46. b5 {[%emt 0:01:17]} Nc5 {[%emt 0:08:46]} 47. Ra3 {[%emt 0:00:42]} Rfxf3+ {[%emt 0:01:05]} 0-1

[Event "EICC 2025"]
[Site "Eforie-Nord"]
[Date "2025.03.15"]
[Round "1.21"]
[White "Ahmadzada, Ahmad"]
[Black "Berend, Fred"]
[Result "1-0"]
[Annotator "ChessBase"]
[ECO "C02"]
[WhiteElo "2550"]
[BlackElo "2219"]
[PlyCount "61"]
[EventDate "2025.03.14"]
[EventType "swiss"]
[EventCountry "ROU"]
[SourceTitle "playchess.com"]
[Source "ChessBase"]
[SourceQuality "1"]
[TimeControl "40/5400+30:1800+30"]

1. e4 {[%emt 0:00:05]} c5 {[%emt 0:00:04]} 2. Nf3 {[%emt 0:00:10]} e6 {[%emt 0:00:23]} 3. c3 {[%emt 0:00:10]} d5 {[%emt 0:00:51]} 4. e5 {[%emt 0:00:08]} Nc6 {[%emt 0:00:44]} 5. d4 {[%emt 0:00:07]} Qb6 {[%emt 0:00:11]} 6. Na3 {[%emt 0:00:11]} cxd4 {[%emt 0:01:05]} 7. cxd4 {[%emt 0:00:08]} Bb4+ {[%emt 0:03:08]} 8. Bd2 {[%emt 0:00:09]} Bxa3 {[%emt 0:00:29]} 9. bxa3 {[%emt 0:00:09]} Nxd4 {[%emt 0:00:35]} 10. Qa4+ {[%emt 0:00:30]} Nc6 {[%emt 0:00:26]} 11. Bd3 {[%emt 0:10:41]} Nge7 {[%emt 0:06:12]} 12. O-O {[%emt 0:01:57]} Bd7 {[%emt 0:04:55]} 13. Qg4 {[%emt 0:03:18]} Ng6 {[%emt 0:11:33]} 14. h4 {[%emt 0:12:22]} O-O-O {[%emt 0:06:26]} 15. Rfc1 {[%emt 0:04:16]} Kb8 {[%emt 0:01:08]} 16. Rab1 {[%emt 0:00:53]} Qc7 {[%emt 0:00:11]} 17. h5 {[%emt 0:00:37]} Nge7 {[%emt 0:05:17]} 18. Bb4 {[%emt 0:02:49]} Nc8 {[%emt 0:06:09]} 19. Qxg7 {[%emt 0:01:00]} Rdg8 {[%emt 0:04:19]} 20. Qxf7 {[%emt 0:07:09]} Qd8 {[%emt 0:20:09]} 21. Bb5 {[%emt 0:04:14]} Nxe5 {[%emt 0:03:11]} 22. Qf4 {[%emt 0:04:51]} Bxb5 {[%emt 0:00:52]} 23. Nxe5 {[%emt 0:01:26]} Ka8 {[%emt 0:01:16]} 24. Nf7 {[%emt 0:00:08]} Qe8 {[%emt 0:01:50]} 25. Nxh8 {[%emt 0:02:20]} Rxh8 {[%emt 0:00:10]} 26. Rc7 {[%emt 0:00:34]} Qxh5 {[%emt 0:05:36]} 27. Bf8 {[%emt 0:03:50]} Nb6 {[%emt 0:04:17]} 28. Qf6 {[%emt 0:00:33]} Rxf8 {[%emt 0:01:37]} 29. Qxf8+ {[%emt 0:00:09]} Qe8 {[%emt 0:00:27]} 30. Rf7 {[%emt 0:00:26]} Nc8 {[%emt 0:01:17]} 31. Rxb5 {[%emt 0:00:09]} 1-0

[Event "EICC 2025"]
[Site "Eforie-Nord"]
[Date "2025.03.15"]
[Round "1.21"]
[White "Vijayakumar, Rishi"]
[Black "Suleymanli, Aydin"]
[Result "0-1"]
[Annotator "TA"]
[ECO "D45"]
[WhiteElo "2311"]
[BlackElo "2633"]
[PlyCount "142"]
[EventDate "2025.03.14"]
[EventType "swiss"]
[EventCountry "ROU"]
[SourceTitle "playchess.com"]
[Source "ChessBase"]
[SourceQuality "1"]
[TimeControl "40/5400+30:1800+30"]

{[%evp 14,142,-9,-20,8,-21,1,-23,0,-8,12,0,8,-4,6,-16,-16,-16,-7,-16,-16,-16,-12,-20,-20,-25,-9,-2,-6,-2,20,-50,-54,-60,-45,-62,-55,-64,-73,-69,-61,-52,-30,-72,-62,-107,-92,-85,-52,-43,-60,-57,-45,-79,-75,-69,-60,-75,-39,-86,-66,-124,-55,-55,-65,-62,-51,-50,-52,-40,-28,-28,-28,-37,-39,-39,-37,-60,-62,-97,-97,-95,-87,-97,-103,-120,-108,-107,-110,-266,-267,-305,-273,-296,-294,-323,-310,-331,-308,-355,-340,-644,-644,-643,-625,-617,-617,-603,-596,-610,-571,-608,-586,-620,-617,-1181,-872,-4947,-4915,-4610,-4602,-5093,-5093,-29991,-29991,-29991,-29982,-29992,-29993,-29993,-4943]} 1. d4 {[%emt 0:00:19]} Nf6 {[%emt 0:00:11]} 2. c4 {[%emt 0:00:17]} e6 {[%emt 0:00:09]} 3. Nf3 {[%emt 0:00:24]} d5 {[%emt 0:00:09]} 4. Nc3 {[%emt 0:00:45]} c6 {[%emt 0:00:11]} 5. e3 {[%emt 0:01:58]} Nbd7 {[%emt 0:01:11]} 6. Qc2 {[%emt 0:00:08]} Bd6 {[%emt 0:00:30]} 7. g4 {[%emt 0:00:57]} h6 {[%emt 0:00:08]} 8. Bd2 {[%emt 0:00:28] Recently 8.g5 got a lot of attention.} dxc4 {[%emt 0:00:15] D45: Semi-Slav: 5 e3.} 9. Bxc4 {[%emt 0:00:02]} b5 $1 {[%emt 0:00:07]} 10. Be2 {[%emt 0:00:20]} Bb7 $1 {[%emt 0:00:29][%cal Oa7a6] Black has an edge.} 11. e4 {[%emt 0:00:22]} Be7 {[%emt 0:00:37][%cal Ob5b4]} 12. e5 {[%emt 0:00:29]} b4 $1 {[%emt 0:00:29]} 13. exf6 {[%emt 0:00:07]} bxc3 {[%emt 0:00:05]} 14. bxc3 {[%emt 0:01:06]} Nxf6 {[%emt 0:00:08][%cal Oe8g8]} 15. Rb1 {[%emt 0:00:19]} Rb8 {[%emt 0:01:23][%cal Od8c7]} 16. c4 {[%emt 0:02:44]} c5 {[%emt 0:23:55]} (16... Nxg4 17. Rg1 h5 18. h3 $16) 17. Qa4+ $1 {[%emt 0:21:19]} Nd7 {[%emt 0:01:28]} 18. O-O {[%emt 0:05:46]} O-O {[%emt 0:04:02]} 19. Bf4 {[%emt 0:03:06]} Bxf3 {[%emt 0:00:50]} (19... Be4 {looks sharper.} 20. Rxb8 Nxb8 21. Rd1 Qc8) 20. Rxb8 {[%emt 0:16:17]} Nxb8 {[%emt 0:00:07]} 21. Bxf3 {[%emt 0:00:06]} Qxd4 $146 {[%emt 0:09:57]} ({Predecessor:} 21... Bd6 22. Bxd6 Qxd6 23. dxc5 Qxc5 24. Rd1 Qc7 25. h3 Rc8 26. Be4 g6 27. Qc2 Kg7 {½-½ Hartl,H (2483)-Bubir,A (2460) LSS WC-2010-F-00001}) 22. Bc7 {[%emt 0:07:08] This pair of bishops is nice.} ({White should play} 22. Bg3 $11) 22... Bh4 $36 {[%emt 0:04:28][%mdl 2048] White is under pressure.} 23. Qxa7 {[%emt 0:18:44]} Nd7 {[%emt 0:00:53][%cal Od7f6]} 24. Qa6 {[%emt 0:09:18]} Ne5 {[%emt 0:07:55]} 25. Bxe5 {[%emt 0:00:21]} Qxe5 {[%emt 0:00:09]} 26. Qc6 {[%emt 0:06:12] White is weak on the dark squares} Rd8 {[%emt 0:06:13]} 27. a4 {[%emt 0:00:23]} g6 {[%emt 0:04:14]} 28. Qe4 {[%emt 0:04:20]} Qc3 {[%emt 0:03:38]} 29. Be2 {[%emt 0:00:40]} Rd4 {[%emt 0:03:16] Black has more active pieces.} 30. Qe3 {[%emt 0:00:11]} Qxe3 {[%emt 0:02:41]} 31. fxe3 $17 {[%emt 0:00:01][%mdl 4096] Endgame KRB-KRB} Rd2 {[%emt 0:00:11]} 32. Bf3 {[%emt 0:01:18]} Bg5 {[%emt 0:00:37]} 33. Re1 {[%emt 0:00:32]} Rc2 {[%emt 0:03:36]} 34. Bc6 {[%emt 0:00:27]} Rxc4 {[%emt 0:05:09]} 35. a5 {[%emt 0:00:01] Hoping for a6.} Rc3 {[%emt 0:01:15][%cal Bc4c3,Bc3a3,Ba3a2][%mdl 32]} (35... Rxg4+ $6 36. Kf2 Bd8 (36... Bh4+ 37. Kf3 $16) 37. Ra1 $11) 36. a6 {[%emt 0:00:21]} (36. Ra1 $1 $15) 36... Ra3 $1 {[%emt 0:01:04]} (36... Rxe3 $2 37. Ra1 $18) (36... Bxe3+ 37. Kf1 c4 38. Rxe3 Rxe3 39. a7 $11) 37. Bb7 {[%emt 0:00:18]} (37. Bb5 $1 $15) 37... c4 {[%emt 0:01:00]} (37... Rxe3 $2 38. Ra1 $18) (37... Bxe3+ 38. Rxe3 Rxe3 39. a7 $16) (37... Kf8 $17 {[%cal Of8e8]} 38. Kf1 Bf6 (38... Rxe3 $2 39. Rxe3 Bxe3 40. a7 $18)) 38. Kf1 $15 {[%emt 0:01:19]} Ra2 {[%emt 0:07:35]} (38... Rxe3 $2 39. Ra1 $18 (39. a7 Ra3 $18)) (38... Bxe3 39. Rxe3 Rxe3 40. a7 $18) 39. Re2 {[%emt 0:00:30]} Ra1+ {[%emt 0:01:13]} 40. Kf2 {[%emt 0:00:32]} Ra3 {[%emt 0:06:50]} 41. Kf3 {[%emt 0:05:46]} f5 {[%emt 0:04:16]} 42. gxf5 {[%emt 0:00:53]} gxf5 {[%emt 0:00:12]} 43. Rc2 $1 {[%emt 0:02:35]} Bxe3 {[%emt 0:04:33]} 44. Rxc4 {[%emt 0:00:05]} e5 {[%emt 0:01:49]} 45. Bc8 {[%emt 0:03:27]} Bd4+ {[%emt 0:01:24]} 46. Kg2 {[%emt 0:01:23] [#]} f4 $1 {[%emt 0:00:34]} 47. Bb7 {[%emt 0:07:52]} Kg7 {[%emt 0:00:11]} 48. Be4 {[%emt 0:08:28]} Rxa6 {[%emt 0:03:15]} 49. Rc7+ {[%emt 0:00:02]} Kf8 {[%emt 0:00:13]} 50. Kf3 {[%emt 0:01:14]} Ra3+ {[%emt 0:02:52]} 51. Kg4 $2 {[%emt 0:00:22] [#] This costs White the game.} (51. Kg2 $17) 51... f3 $1 $19 {[%emt 0:00:57]} 52. Rc8+ {[%emt 0:03:34]} (52. Rc1 f2) 52... Ke7 {[%emt 0:00:50]} 53. Rc7+ {[%emt 0:00:38]} Kd8 {[%emt 0:01:10]} 54. Rf7 {[%emt 0:00:42]} f2 {[%emt 0:00:05]} 55. h4 {[%emt 0:00:31]} Ra1 {[%emt 0:00:39]} 56. Bd3 {[%emt 0:00:14]} e4 {[%emt 0:01:12]} 57. Bb5 {[%emt 0:00:19] [#]} (57. Bc4) 57... h5+ $1 {[%emt 0:04:42]} 58. Kh3 {[%emt 0:00:55]} Rh1+ {[%emt 0:00:24]} 59. Kg2 {[%emt 0:00:05]} Rg1+ {[%emt 0:00:05]} ({And not} 59... Rxh4 60. Rd7+ Kc8 61. Rxd4 $11) 60. Kh3 {[%emt 0:00:13]} Be5 {[%emt 0:01:09] White must now prevent ...Rg3+.} 61. Rxf2 {[%emt 0:01:16]} Rg3+ {[%emt 0:00:06]} 62. Kh2 {[%emt 0:00:10]} Rb3+ {[%emt 0:00:18]} 63. Kg2 {[%emt 0:00:15]} Rxb5 {[%emt 0:00:08] KRB-KR} 64. Rf5 {[%emt 0:00:05]} Ke7 {[%emt 0:00:17]} 65. Rxh5 {[%emt 0:00:11]} Ke6 {[%emt 0:00:05]} 66. Rg5 {[%emt 0:00:27]} Rb2+ {[%emt 0:00:07]} 67. Kf1 {[%emt 0:00:06]} e3 {[%emt 0:00:14] ( -> ...e2+)} 68. Rg4 {[%emt 0:00:26]} Rf2+ {[%emt 0:00:28] Black mates.} 69. Kg1 {[%emt 0:00:07]} Bh2+ {[%emt 0:00:17]} 70. Kh1 {[%emt 0:00:06]} e2 {[%emt 0:00:16]} 71. Re4+ {[%emt 0:00:45]} Be5 {[%emt 0:00:13] Weighted Error Value: White=0.24 (precise) /Black=0.06 (flawless)   Mistake:       	White=5     	Black=1      Inaccurate:     	White=6     	Black=1      OK:         	White=19    	Black=21     Best:        	White=1     	Black=4      Strong:       	White=2     	Black=5      Brilliant:      	---       	Black=1} (71... Kd5 $142 72. Re3 Kd4 73. Rxe2 Rxe2 74. h5 Ke4 75. h6 Kf3 (75... Bf4 {gets mated.} 76. Kg1 Kf3 77. Kf1 Bg3 78. h7 Re1#) 76. h7 Bg3 77. h8=Q Re1#) 0-1

[Event "EICC 2025"]
[Site "Eforie-Nord"]
[Date "2025.03.15"]
[Round "1.22"]
[White "Hovhannisyan, Robert"]
[Black "Fruebing, Stefan"]
[Result "1-0"]
[Annotator "TA"]
[ECO "C67"]
[WhiteElo "2630"]
[BlackElo "2310"]
[PlyCount "69"]
[EventDate "2025.03.14"]
[EventType "swiss"]
[EventCountry "ROU"]
[SourceTitle "playchess.com"]
[Source "ChessBase"]
[SourceQuality "1"]
[TimeControl "40/5400+30:1800+30"]

{[%evp 24,69,0,0,0,-3,5,0,28,28,30,20,33,17,29,15,29,29,40,43,42,29,58,71,90,106,158,162,157,151,347,376,362,366,349,362,342,335,546,546,854,842,779,778,694,716,741,721]} 1. e4 {[%emt 0:00:04]} e5 {[%emt 0:00:07]} 2. Nf3 {[%emt 0:00:13]} Nc6 {[%emt 0:00:07]} 3. Bb5 {[%emt 0:00:08]} Nf6 {[%emt 0:00:11][%cal Bg8f6,Bf6e4,Be4d6,Bd6f5][%mdl 32]} 4. O-O {[%emt 0:00:38]} Nxe4 {[%emt 0:00:16]} 5. d4 {[%emt 0:00:14]} Nd6 {[%emt 0:00:23]} 6. Bxc6 {[%emt 0:00:09]} dxc6 {[%emt 0:00:09]} 7. dxe5 {[%emt 0:00:05]} Nf5 {[%emt 0:00:15]} 8. Qxd8+ {[%emt 0:00:14]} Kxd8 {[%emt 0:00:02]} 9. Rd1+ {[%emt 0:00:50]} Ke8 {[%emt 0:00:11]} 10. Nc3 {[%emt 0:00:13][%cal Bb1c3,Bc3e2,Be2d4][%mdl 32]} Be7 {[%emt 0:00:41]} 11. g4 {[%emt 0:01:06]} Nh4 {[%emt 0:01:11]} 12. Nxh4 {[%emt 0:00:21]} Bxh4 {[%emt 0:00:03]} 13. h3 {[%emt 0:00:56]} h5 {[%emt 0:02:25] C67: Ruy Lopez: Berlin Defence: 4 0-0 Nxe4.} 14. f3 {[%emt 0:01:51]} Be6 {[%emt 0:10:57]} 15. Ne2 {[%emt 0:07:22]} Bd7 {[%emt 0:29:16] The position is equal.} 16. Kg2 $146 {[%emt 0:06:11]} (16. Nf4 hxg4 17. hxg4 Rd8 18. Kg2 Bc8 19. Be3 b6 20. Rh1 g5 21. Nh5 c5 22. Ng7+ {½-½ Cetin,E-Muchtakova,V ICCF FM/3881 2023}) 16... a5 {[%emt 0:00:33]} 17. a4 {[%emt 0:05:24]} Rd8 {[%emt 0:05:45]} 18. Be3 {[%emt 0:03:54]} Bc8 {[%emt 0:01:22]} 19. b3 {[%emt 0:09:38]} b6 {[%emt 0:05:12]} 20. Nd4 {[%emt 0:05:03]} Bd7 {[%emt 0:07:56]} 21. Bf4 {[%emt 0:07:04][%cal Oe5e6]} Rc8 {[%emt 0:07:02]} 22. Rd3 {[%emt 0:04:13]} c5 {[%emt 0:01:36]} 23. Nf5 {[%emt 0:05:21]} Bxf5 {[%emt 0:01:33]} 24. gxf5 {[%emt 0:00:05]} Ke7 {[%emt 0:01:26]} (24... Rd8 $142) 25. Rad1 $16 {[%emt 0:03:02] White is more active.} Rhd8 {[%emt 0:01:40]} 26. Bg3 {[%emt 0:05:04]} Bg5 $2 {[%emt 0:08:18] [#] A mistake that costs the game.} (26... Bxg3 $16 {is a better defense.} 27. f6+ (27. Kxg3 Rxd3 28. Rxd3 g5 $16) 27... gxf6 28. exf6+ (28. Kxg3 h4+ 29. Kxh4 Rg8 $17) (28. Rxd8 Rxd8 29. exf6+ Ke8 $11) 28... Ke8 29. Kxg3 c4 30. Re1+ (30. bxc4 Rd6 $18) 30... Kf8 31. bxc4 Rd6) 27. f4 $1 $18 {[%emt 0:01:52]} (27. h4 Rxd3 28. Rxd3 Bc1 $16) 27... Rxd3 {[%emt 0:00:33]} 28. Rxd3 {[%emt 0:00:07][%mdl 4096] Endgame KRB-KRB} ({Weaker is} 28. cxd3 Bh6 $16) 28... Bh6 {[%emt 0:00:22]} 29. Bh4+ {[%emt 0:01:57]} f6 {[%emt 0:03:06]} 30. Kf3 {[%emt 0:00:44]} Re8 $2 {[%emt 0:03:35] [#]} (30... c6 31. Rd6 c4) 31. exf6+ {[%emt 0:01:36] White is clearly winning.} gxf6 {[%emt 0:00:45]} 32. Re3+ {[%emt 0:00:09]} Kf7 {[%emt 0:00:25]} 33. Rxe8 {[%emt 0:00:15]} Kxe8 {[%emt 0:00:04]} 34. Bxf6 {[%emt 0:00:05]} c6 {[%emt 0:02:07]} 35. c4 {[%emt 0:01:28] Weighted Error Value: White=0.03 (flawless) /Black=0.51  Loses game:     	---       	Black=1      Mistake:       	---       	Black=2      Inaccurate:     	---       	Black=3      OK:         	White=10    	Black=5      Best:        	White=1     	---        Strong:       	White=1     	---} 1-0